[Event "MČR družstev mladších žáků 2024"]
[Site "Harrachov, Czech Republic"]
[Date "2024.06.15"]
[Round "4.9"]
[White "Vorlik Jachym"]
[Black "Najdkova Laura"]
[Result "1/2-1/2"]
[TimeControl "25+10"]
[WhiteFideId "23750901"]
[BlackFideId "23751290"]
[WhiteElo "1388"]
[BlackElo "1337"]

1. e4 {[%clk 00:25:18]} {[%emt 00:00:02]} e5 {[%clk 00:25:20]} 2. Nf3 {[%clk
00:25:26]} {[%emt 00:00:01]} Nf6 {[%clk 00:25:27]} {[%emt 00:00:03]} 3. Nc3
{[%clk 00:25:35]} {[%emt 00:00:01]} Bb4 {[%clk 00:25:31]} {[%emt 00:00:06]} 4.
d3 {[%clk 00:25:31]} {[%emt 00:00:14]} d6 {[%clk 00:25:19]} {[%emt 00:00:22]} 5.
Bd2 {[%clk 00:25:32]} O-O {[%clk 00:25:18]} {[%emt 00:00:20]} 6. Be2 {[%clk
00:25:39]} Be6 {[%clk 00:25:16]} {[%emt 00:00:15]} 7. O-O {[%emt 00:00:51]}
Nbd7 8. a3 {[%clk 00:25:46]} Bc5 {[%clk 00:24:48]} {[%emt 00:00:08]} 9. Na4
{[%clk 00:24:20]} {[%emt 00:01:38]} c6 {[%clk 00:23:54]} {[%emt 00:01:04]} 10.
Nxc5 {[%clk 00:24:11]} {[%emt 00:00:19]} Nxc5 {[%clk 00:24:03]} {[%emt
00:00:01]} 11. Be3 {[%clk 00:23:40]} {[%emt 00:00:41]} b6 {[%clk 00:21:35]}
{[%emt 00:02:39]} 12. Bxc5 {[%clk 00:22:00]} {[%emt 00:01:50]} bxc5 {[%clk
00:21:41]} {[%emt 00:00:04]} 13. c4 {[%clk 00:21:44]} {[%emt 00:00:25]} Rb8
{[%clk 00:21:28]} {[%emt 00:00:23]} 14. Qd2 {[%clk 00:20:31]} {[%emt 00:01:22]}
h6 {[%clk 00:20:32]} {[%emt 00:01:07]} 15. b4 {[%clk 00:20:21]} {[%emt
00:00:20]} cxb4 {[%clk 00:20:12]} {[%emt 00:00:30]} 16. axb4 {[%clk 00:20:15]}
{[%emt 00:00:16]} Qc7 {[%clk 00:20:14]} {[%emt 00:00:09]} 17. Rfb1 {[%clk
00:19:29]} d5 {[%clk 00:20:01]} {[%emt 00:01:19]} 18. cxd5 {[%clk 00:18:29]}
cxd5 {[%clk 00:19:50]} 19. Rc1 {[%clk 00:18:29]} Qd6 {[%clk 00:19:50]} {[%emt
00:01:31]} 20. exd5 {[%clk 00:17:45]} Nxd5 {[%clk 00:19:25]} {[%emt 00:01:29]}
21. Rxa7 {[%clk 00:15:31]} {[%emt 00:02:02]} Nxb4 {[%clk 00:15:48]} 22. Qe3 Nd5
{[%clk 00:17:34]} 23. Qd2 {[%clk 00:15:31]} {[%emt 00:01:51]} Nb4 {[%clk
00:15:48]} 24. Qe3 {[%clk 00:15:31]} Nc6 {[%clk 00:15:48]} {[%emt 00:02:38]} 25.
Ra6 {[%clk 00:14:51]} Rfc8 {[%clk 00:15:48]} 26. Nxe5 {[%clk 00:14:51]} Qxe5
{[%clk 00:15:48]} 27. Raxc6 {[%clk 00:14:51]} Qxe3 {[%clk 00:13:41]} {[%emt
00:05:58]} 28. Rxc8+ {[%clk 00:12:18]} Bxc8 {[%clk 00:13:17]} {[%emt 00:01:05]}
29. fxe3 {[%clk 00:12:22]} Ba6 {[%clk 00:13:13]} {[%emt 00:00:21]} 30. Kf2
{[%clk 00:12:24]} Kf8 {[%clk 00:13:18]} {[%emt 00:00:11]} 31. Rc6 {[%clk
00:12:07]} Bb5 {[%clk 00:13:11]} {[%emt 00:00:43]} 32. Rc5 {[%clk 00:12:08]}
Ba6 {[%clk 00:12:48]} {[%emt 00:00:44]} 33. Rc1 {[%clk 00:11:45]} Rb2 {[%clk
00:12:43]} {[%emt 00:00:48]} 34. Kf3 {[%clk 00:11:27]} Rd2 {[%clk 00:12:28]}
{[%emt 00:00:52]} 35. Rc3 {[%clk 00:11:15]} Bb7+ {[%emt 00:01:57]} 36. e4
{[%emt 00:00:37]} Rb2 {[%clk 00:10:12]} {[%emt 00:00:42]} 37. Bd1 {[%clk
00:08:32]} {[%emt 00:02:31]} f5 {[%clk 00:09:53]} 38. Rc2 fxe4+ 39. dxe4 {[%clk
00:08:29]} Rb3+ {[%clk 00:09:01]} {[%emt 00:01:02]} 40. Kf4 {[%clk 00:07:51]}
{[%emt 00:00:47]} Rb4 {[%clk 00:08:50]} {[%emt 00:00:21]} 41. Re2 {[%clk
00:07:37]} {[%emt 00:00:24]} Rd4 {[%clk 00:06:52]} {[%emt 00:02:08]} 42. Bb3
{[%clk 00:06:55]} {[%emt 00:00:51]} Ba6 {[%clk 00:06:45]} {[%emt 00:00:18]} 43.
Re3 {[%clk 00:05:55]} {[%emt 00:01:10]} Bf1 {[%clk 00:06:19]} {[%emt 00:00:35]}
44. g4 {[%clk 00:04:49]} {[%emt 00:01:16]} Rd2 {[%clk 00:06:16]} {[%emt
00:00:15]} 45. h4 {[%clk 00:04:14]} {[%emt 00:00:44]} g6 {[%clk 00:04:36]}
{[%emt 00:01:50]} 46. Rg3 {[%clk 00:02:55]} {[%emt 00:01:28]} Rh2 {[%clk
00:03:33]} {[%emt 00:01:15]} 47. h5 {[%clk 00:01:38]} {[%emt 00:01:27]} gxh5
{[%clk 00:03:30]} {[%emt 00:00:13]} 48. gxh5 {[%clk 00:01:43]} {[%emt
00:00:04]} Rxh5 {[%clk 00:03:39]} {[%emt 00:00:02]} 49. Rg8+ {[%clk 00:01:34]}
{[%emt 00:00:18]} Ke7 {[%clk 00:03:33]} {[%emt 00:00:17]} 50. Rg7+ {[%clk
00:01:31]} {[%emt 00:00:12]} Kf6 {[%clk 00:03:09]} {[%emt 00:00:35]} 51. Rf7+
{[%clk 00:01:04]} {[%emt 00:00:37]} Kg6 {[%clk 00:03:07]} {[%emt 00:00:08]} 52.
Be6 {[%clk 00:00:31]} {[%emt 00:00:47]} Bh3 {[%clk 00:02:40]} {[%emt 00:00:33]}
53. Rf5 {[%clk 00:00:15]} {[%emt 00:00:30]} Bxf5 {[%clk 00:02:45]} {[%emt
00:00:04]} 54. Bxf5+ {[%clk 00:00:22]} {[%emt 00:00:03]} Kf6 {[%clk 00:02:52]}
{[%emt 00:00:03]} 55. Kg4 {[%clk 00:00:27]} {[%emt 00:00:06]} Rg5+ {[%clk
00:03:01]} 56. Kh4 {[%clk 00:00:32]} {[%emt 00:00:05]} Ke5 {[%clk 00:02:53]}
{[%emt 00:00:19]} 57. Kh3 {[%clk 00:00:36]} {[%emt 00:00:05]} Kf4 {[%clk
00:02:59]} {[%emt 00:00:03]} 58. Kh4 {[%clk 00:00:42]} {[%emt 00:00:05]} Kf3
{[%clk 00:02:49]} {[%emt 00:00:18]} 59. Be6 {[%clk 00:00:23]} {[%emt 00:00:30]}
Kxe4 {[%clk 00:02:52]} {[%emt 00:00:07]} 60. Kh3 {[%clk 00:00:31]} {[%emt
00:00:03]} Kf4 {[%clk 00:03:00]} {[%emt 00:00:02]} 61. Kh4 {[%clk 00:00:37]}
{[%emt 00:00:04]} Rg6 {[%clk 00:02:18]} {[%emt 00:00:51]} 62. Bf7 {[%clk
00:00:24]} {[%emt 00:00:23]} Rg5 {[%clk 00:02:13]} {[%emt 00:00:15]} 63. Be8
{[%clk 00:00:21]} {[%emt 00:00:13]} Rg1 {[%clk 00:02:04]} {[%emt 00:00:17]} 64.
Kh3 {[%clk 00:00:15]} {[%emt 00:00:18]} Rg5 {[%clk 00:01:55]} {[%emt 00:00:19]}
65. Kh2 {[%clk 00:00:22]} {[%emt 00:00:03]} Kg4 {[%clk 00:01:34]} {[%emt
00:00:32]} 66. Bd7+ {[%clk 00:00:25]} {[%emt 00:00:07]} Kh4 {[%clk 00:01:38]}
{[%emt 00:00:04]} 67. Bh3 {[%clk 00:00:28]} {[%emt 00:00:07]} h5 {[%clk
00:01:18]} {[%emt 00:00:31]} 68. Bf1 {[%clk 00:00:29]} {[%emt 00:00:09]}
1/2-1/2



[ePGN "0.1;DGT LiveChess/2.2.6"]

[Event "MČR družstev mladších žáků 2024"]
[Site "Harrachov, Czech Republic"]
[Date "2024.06.15"]
[Round "5.1"]
[White "Zrust Lukas"]
[Black "Policar Martin"]
[Result "1-0"]
[TimeControl "25+10"]
[WhiteFideId "23736666"]
[BlackFideId "23734868"]
[WhiteElo "1742"]
[BlackElo "1646"]

1. c4 {[%clk 00:25:18]} {[%emt 00:00:01]} Nf6 {[%clk 00:25:17]} {[%emt
00:00:03]} 2. Nc3 {[%clk 00:25:26]} {[%emt 00:00:02]} d5 {[%clk 00:25:26]}
{[%emt 00:00:02]} 3. cxd5 {[%clk 00:25:35]} {[%emt 00:00:01]} Nxd5 {[%clk
00:25:34]} {[%emt 00:00:02]} 4. g3 {[%clk 00:25:37]} {[%emt 00:00:08]} g6
{[%clk 00:25:39]} {[%emt 00:00:05]} 5. Bg2 {[%clk 00:25:43]} {[%emt 00:00:04]}
Nxc3 {[%clk 00:25:36]} {[%emt 00:00:13]} 6. bxc3 {[%clk 00:25:50]} {[%emt
00:00:04]} Bg7 {[%clk 00:25:44]} {[%emt 00:00:01]} 7. Rb1 {[%clk 00:25:51]}
{[%emt 00:00:09]} c6 {[%clk 00:25:48]} {[%emt 00:00:06]} 8. Nf3 {[%clk
00:25:46]} {[%emt 00:00:15]} O-O {[%clk 00:25:47]} {[%emt 00:00:12]} 9. O-O
{[%clk 00:25:53]} {[%emt 00:00:03]} Nd7 {[%clk 00:25:43]} {[%emt 00:00:14]} 10.
Ba3 {[%clk 00:24:55]} {[%emt 00:01:08]} Nb6 {[%clk 00:25:31]} {[%emt 00:00:23]}
11. Bb2 {[%clk 00:22:15]} {[%emt 00:02:50]} Be6 {[%clk 00:24:50]} {[%emt
00:00:51]} 12. a4 {[%clk 00:20:54]} {[%emt 00:01:32]} Nc4 {[%clk 00:23:49]}
{[%emt 00:01:10]} 13. Ba1 {[%clk 00:20:43]} {[%emt 00:00:19]} b6 {[%clk
00:19:55]} {[%emt 00:04:07]} 14. Nd4 {[%clk 00:19:05]} {[%emt 00:01:48]} Bd7
{[%clk 00:18:20]} {[%emt 00:01:45]} 15. Nxc6 {[%clk 00:18:52]} {[%emt
00:00:22]} Bxc6 {[%clk 00:18:28]} {[%emt 00:00:02]} 16. Bxc6 {[%clk 00:18:49]}
{[%emt 00:00:12]} Rc8 {[%clk 00:18:36]} {[%emt 00:00:02]} 17. Bb7 {[%clk
00:15:04]} {[%emt 00:03:55]} Rb8 {[%clk 00:18:31]} {[%emt 00:00:16]} 18. d3
{[%clk 00:14:13]} {[%emt 00:01:00]} Na3 {[%clk 00:17:11]} {[%emt 00:01:30]} 19.
Rb3 {[%clk 00:14:06]} {[%emt 00:00:17]} Rxb7 {[%clk 00:17:02]} {[%emt
00:00:19]} 20. Rxa3 {[%clk 00:14:05]} {[%emt 00:00:10]} Qd6 {[%clk 00:17:10]}
{[%emt 00:00:02]} 21. Rb3 {[%clk 00:13:23]} {[%emt 00:00:52]} Qc6 {[%clk
00:17:04]} {[%emt 00:00:17]} 22. Rb1 {[%clk 00:12:48]} {[%emt 00:00:44]} h5
{[%clk 00:16:03]} {[%emt 00:01:11]} 23. c4 {[%clk 00:12:41]} {[%emt 00:00:17]}
h4 {[%clk 00:15:34]} {[%emt 00:00:39]} 24. Bxg7 {[%clk 00:12:38]} {[%emt
00:00:13]} Kxg7 {[%clk 00:15:41]} {[%emt 00:00:02]} 25. Ra1 {[%clk 00:08:02]}
{[%emt 00:04:47]} Qc5 {[%clk 00:14:24]} {[%emt 00:01:28]} 26. Kg2 {[%clk
00:05:38]} {[%emt 00:02:33]} Rh8 {[%clk 00:12:36]} {[%emt 00:01:57]} 27. Qd2
{[%clk 00:04:53]} {[%emt 00:00:56]} Rd7 {[%clk 00:12:02]} {[%emt 00:00:44]} 28.
Qe3 {[%clk 00:04:17]} {[%emt 00:00:45]} Qh5 {[%clk 00:10:54]} {[%emt 00:01:18]}
29. Rh1 {[%clk 00:02:05]} {[%emt 00:02:21]} Rd6 {[%clk 00:09:55]} {[%emt
00:01:09]} 30. Ra2 {[%clk 00:01:08]} {[%emt 00:01:06]} Re6 {[%clk 00:08:41]}
{[%emt 00:01:26]} 31. Qd4+ {[%clk 00:01:07]} {[%emt 00:00:10]} f6 {[%clk
00:08:50]} {[%emt 00:00:02]} 32. Qxh4 {[%clk 00:00:56]} {[%emt 00:00:21]} Qf5
{[%clk 00:07:02]} {[%emt 00:01:58]} 33. Qf4 {[%clk 00:00:39]} {[%emt 00:00:26]}
Qh3+ {[%clk 00:06:59]} {[%emt 00:00:14]} 34. Kf3 {[%clk 00:00:21]} {[%emt
00:00:28]} g5 {[%clk 00:05:49]} {[%emt 00:01:20]} 35. Qg4 {[%clk 00:00:24]}
{[%emt 00:00:06]} f5 {[%clk 00:03:27]} {[%emt 00:02:33]} 36. Qxh3 {[%clk
00:00:26]} {[%emt 00:00:08]} Rxh3 {[%clk 00:03:28]} {[%emt 00:00:10]} 37. a5
{[%clk 00:00:18]} {[%emt 00:00:18]} g4+ {[%clk 00:02:36]} {[%emt 00:01:02]} 38.
Kf4 {[%clk 00:00:19]} {[%emt 00:00:09]} Kf6 {[%clk 00:01:46]} {[%emt 00:00:59]}
39. e4 {[%clk 00:00:20]} {[%emt 00:00:09]} Rh5 {[%clk 00:01:09]} {[%emt
00:00:47]} 40. axb6 {[%clk 00:00:16]} {[%emt 00:00:15]} axb6 {[%clk 00:00:37]}
{[%emt 00:00:42]} 41. exf5 {[%clk 00:00:24]} {[%emt 00:00:02]} Re5 {[%clk
00:00:19]} {[%emt 00:00:27]} 42. Kxg4 {[%clk 00:00:23]} {[%emt 00:00:11]} Rexf5
{[%clk 00:00:20]} {[%emt 00:00:09]} 43. f4 {[%clk 00:00:32]} e5 {[%clk
00:00:25]} {[%emt 00:00:06]} 44. Ra6 {[%clk 00:00:31]} {[%emt 00:00:11]} exf4
{[%clk 00:00:26]} {[%emt 00:00:09]} 45. gxf4 {[%clk 00:00:37]} {[%emt
00:00:04]} Kg7 {[%clk 00:00:28]} {[%emt 00:00:08]} 46. Rxb6 {[%clk 00:00:42]}
{[%emt 00:00:05]} Rc5 {[%clk 00:00:28]} {[%emt 00:00:09]} 47. h4 {[%clk
00:00:43]} {[%emt 00:00:09]} Kf7 {[%clk 00:00:26]} {[%emt 00:00:12]} 48. Ra1
{[%clk 00:00:50]} {[%emt 00:00:03]} Ra5 {[%emt 00:00:18]} 49. Rxa5 {[%clk
00:00:53]} {[%emt 00:00:06]} Rxa5 {[%clk 00:00:28]} 50. d4 {[%clk 00:00:58]}
{[%emt 00:00:05]} Ra4 {[%clk 00:00:35]} {[%emt 00:00:03]} 51. Rc6 {[%clk
00:01:07]} Kg7 {[%clk 00:00:37]} {[%emt 00:00:08]} 52. d5 {[%clk 00:01:15]}
{[%emt 00:00:02]} Ra1 {[%clk 00:00:45]} {[%emt 00:00:02]} 53. Kf5 {[%clk
00:01:15]} {[%emt 00:00:09]} Ra7 {[%clk 00:00:42]} {[%emt 00:00:15]} 54. d6
{[%clk 00:01:19]} {[%emt 00:00:06]} Rf7+ {[%clk 00:00:48]} {[%emt 00:00:04]} 55.
Ke4 {[%clk 00:01:28]} {[%emt 00:00:01]} Kf6 {[%clk 00:00:36]} {[%emt 00:00:22]}
56. Rc7 {[%clk 00:01:28]} {[%emt 00:00:10]} Rf8 {[%clk 00:00:38]} {[%emt
00:00:08]} 57. Re7 {[%clk 00:01:35]} {[%emt 00:00:03]} Rd8 {[%clk 00:00:44]}
{[%emt 00:00:05]} 58. c5 {[%clk 00:01:42]} {[%emt 00:00:03]} Rc8 {[%clk
00:00:46]} {[%emt 00:00:07]} 59. Kd5 {[%clk 00:01:48]} {[%emt 00:00:04]} Kf5
{[%clk 00:00:48]} {[%emt 00:00:09]} 60. Rf7 {[%clk 00:01:51]} {[%emt 00:00:06]}
Kg6 {[%clk 00:00:57]} {[%emt 00:00:02]} 61. Rc7 {[%clk 00:02:00]} {[%emt
00:00:01]} Rd8 {[%clk 00:01:02]} {[%emt 00:00:05]} 62. d7 {[%clk 00:02:08]}
{[%emt 00:00:02]} Kf6 {[%clk 00:01:11]} 63. Kd6 {[%clk 00:02:17]} {[%emt
00:00:02]} Ra8 {[%clk 00:01:06]} {[%emt 00:00:14]} 64. Rc8 {[%clk 00:02:23]}
{[%emt 00:00:04]} Ra6+ {[%clk 00:01:15]} {[%emt 00:00:02]} 65. c6 {[%clk
00:02:32]} {[%emt 00:00:01]} Kf5 {[%clk 00:01:15]} {[%emt 00:00:09]} 66. d8=Q
{[%clk 00:02:36]} {[%emt 00:00:06]} Ke4 {[%clk 00:01:19]} {[%emt 00:00:07]} 67.
Qe7+ {[%clk 00:02:39]} {[%emt 00:00:08]} Kf3 {[%clk 00:01:27]} {[%emt
00:00:02]} 68. Re8 {[%clk 00:02:41]} {[%emt 00:00:07]} Kg4 {[%clk 00:01:34]}
{[%emt 00:00:03]} 69. Qg5+ {[%clk 00:02:49]} {[%emt 00:00:02]} Kf3 {[%clk
00:01:41]} {[%emt 00:00:03]} 70. f5 {[%clk 00:02:48]} {[%emt 00:00:11]} Kf2
{[%clk 00:01:40]} {[%emt 00:00:11]} 71. Re3 {[%clk 00:02:55]} {[%emt 00:00:03]}
Kf1 {[%clk 00:01:46]} {[%emt 00:00:04]} 72. Qf4+ {[%clk 00:02:51]} {[%emt
00:00:13]} Kg2 {[%clk 00:01:52]} {[%emt 00:00:03]} 73. Qg3+ {[%clk 00:02:59]}
{[%emt 00:00:03]} Kh1 {[%clk 00:01:58]} {[%emt 00:00:05]} 74. Re1# {[%emt
00:00:12]} 1-0



[ePGN "0.1;DGT LiveChess/2.2.6"]

[Event "MČR družstev mladších žáků 2024"]
[Site "Harrachov, Czech Republic"]
[Date "2024.06.15"]
[Round "5.10"]
[White "Kozusnik Jan"]
[Black "Hamernikova Iris"]
[Result "1-0"]
[TimeControl "25+10"]
[WhiteFideId "23731796"]
[BlackFideId "23745738"]
[WhiteElo "1345"]
[BlackElo "1216"]

1. e4 {[%clk 00:25:18]} {[%emt 00:00:02]} e5 {[%clk 00:25:16]} {[%emt
00:00:04]} 2. Nf3 {[%clk 00:25:27]} {[%emt 00:00:01]} Nc6 {[%clk 00:25:25]}
{[%emt 00:00:01]} 3. d4 {[%clk 00:25:37]} {[%emt 00:00:01]} exd4 {[%clk
00:25:33]} {[%emt 00:00:02]} 4. Bc4 {[%clk 00:25:46]} Nf6 {[%clk 00:25:41]}
{[%emt 00:00:02]} 5. e5 {[%clk 00:25:55]} d5 {[%clk 00:25:50]} 6. Bb5 {[%clk
00:26:04]} Ne4 {[%clk 00:26:00]} 7. Nxd4 {[%clk 00:26:12]} {[%emt 00:00:02]}
Bd7 {[%clk 00:26:09]} {[%emt 00:00:01]} 8. Bxc6 {[%clk 00:26:20]} {[%emt
00:00:02]} bxc6 {[%clk 00:26:17]} {[%emt 00:00:01]} 9. O-O {[%clk 00:26:20]}
{[%emt 00:00:10]} Bc5 {[%clk 00:26:26]} {[%emt 00:00:01]} 10. f3 {[%clk
00:26:27]} {[%emt 00:00:03]} Ng5 {[%clk 00:26:34]} {[%emt 00:00:02]} 11. f4
{[%clk 00:26:37]} Ne4 {[%clk 00:26:43]} 12. Be3 {[%clk 00:26:45]} {[%emt
00:00:02]} Bb6 {[%clk 00:26:52]} {[%emt 00:00:02]} 13. Nd2 {[%clk 00:26:28]}
{[%emt 00:00:27]} Nxd2 {[%clk 00:26:59]} {[%emt 00:00:03]} 14. Qxd2 {[%clk
00:26:36]} {[%emt 00:00:01]} O-O {[%clk 00:26:50]} {[%emt 00:00:20]} 15. Nb3
{[%clk 00:23:59]} {[%emt 00:02:46]} Qe7 {[%clk 00:26:31]} {[%emt 00:00:30]} 16.
a4 {[%clk 00:23:32]} {[%emt 00:00:36]} Bf5 {[%clk 00:25:31]} {[%emt 00:01:11]}
17. a5 {[%clk 00:23:10]} {[%emt 00:00:32]} Bxe3+ {[%clk 00:25:24]} {[%emt
00:00:18]} 18. Qxe3 {[%clk 00:23:18]} {[%emt 00:00:02]} Bxc2 {[%clk 00:25:00]}
{[%emt 00:00:34]} 19. Nd4 {[%clk 00:23:21]} {[%emt 00:00:05]} Be4 {[%clk
00:24:58]} {[%emt 00:00:14]} 20. Nxc6 {[%clk 00:21:39]} {[%emt 00:01:51]} Qd7
{[%clk 00:25:06]} {[%emt 00:00:02]} 21. Nd4 {[%clk 00:21:47]} {[%emt 00:00:02]}
c5 {[%clk 00:25:05]} {[%emt 00:00:11]} 22. Nb3 {[%clk 00:21:27]} {[%emt
00:00:29]} c4 {[%clk 00:25:02]} {[%emt 00:00:14]} 23. Nc5 {[%clk 00:21:19]}
{[%emt 00:00:15]} Qc6 {[%clk 00:25:11]} {[%emt 00:00:05]} 24. Nxe4 {[%clk
00:21:25]} {[%emt 00:00:03]} dxe4 {[%clk 00:25:20]} {[%emt 00:00:01]} 25. Rae1
{[%clk 00:20:35]} {[%emt 00:00:58]} Rab8 {[%clk 00:25:15]} {[%emt 00:00:16]} 26.
Re2 {[%clk 00:18:43]} {[%emt 00:02:03]} Rb3 {[%clk 00:24:55]} {[%emt 00:00:29]}
27. Qxa7 {[%clk 00:17:51]} {[%emt 00:01:01]} Ra8 {[%clk 00:25:04]} {[%emt
00:00:02]} 28. Qd4 {[%clk 00:17:57]} {[%emt 00:00:02]} Rd3 {[%clk 00:25:01]}
{[%emt 00:00:13]} 29. Qxe4 {[%clk 00:17:50]} {[%emt 00:00:19]} Qxe4 {[%clk
00:25:04]} {[%emt 00:00:07]} 30. Rxe4 {[%clk 00:17:58]} {[%emt 00:00:01]} Rxa5
{[%clk 00:24:58]} {[%emt 00:00:16]} 31. Rxc4 {[%clk 00:18:05]} {[%emt
00:00:03]} g6 {[%clk 00:25:06]} {[%emt 00:00:01]} 32. g3 {[%clk 00:17:05]}
{[%emt 00:01:10]} Rd2 {[%clk 00:24:56]} {[%emt 00:00:20]} 33. Rf2 {[%clk
00:15:14]} {[%emt 00:01:59]} Ra1+ {[%clk 00:24:38]} {[%emt 00:00:29]} 34. Kg2
{[%clk 00:14:57]} {[%emt 00:00:28]} Rdd1 {[%clk 00:24:44]} {[%emt 00:00:04]} 35.
Rcc2 {[%clk 00:13:03]} {[%emt 00:02:03]} Rd3 {[%clk 00:22:21]} {[%emt
00:02:33]} 36. b4 {[%clk 00:12:31]} {[%emt 00:00:43]} Rb3 {[%clk 00:22:04]}
{[%emt 00:00:27]} 37. Rb2 {[%clk 00:12:38]} {[%emt 00:00:03]} Rb1 {[%clk
00:22:12]} {[%emt 00:00:02]} 38. Rxb1 {[%clk 00:11:55]} {[%emt 00:00:52]} Rxb1
{[%clk 00:22:16]} {[%emt 00:00:06]} 39. Kf3 {[%clk 00:11:40]} {[%emt 00:00:25]}
Rb3+ {[%clk 00:22:22]} {[%emt 00:00:05]} 40. Kg4 {[%clk 00:11:48]} {[%emt
00:00:02]} Rxb4 {[%clk 00:22:22]} {[%emt 00:00:10]} 41. h4 {[%clk 00:11:47]}
{[%emt 00:00:12]} h5+ {[%clk 00:22:30]} {[%emt 00:00:02]} 42. Kh3 {[%clk
00:07:46]} {[%emt 00:04:11]} Rb3 {[%clk 00:22:35]} {[%emt 00:00:05]} 43. Re2
{[%clk 00:07:36]} {[%emt 00:00:20]} Kg7 {[%clk 00:22:39]} {[%emt 00:00:06]} 44.
e6 {[%clk 00:07:16]} {[%emt 00:00:30]} fxe6 {[%clk 00:22:47]} {[%emt 00:00:02]}
45. Rxe6 {[%clk 00:07:24]} {[%emt 00:00:02]} Kf7 {[%clk 00:22:56]} {[%emt
00:00:02]} 46. Ra6 {[%clk 00:06:58]} {[%emt 00:00:33]} Rc3 {[%clk 00:23:00]}
{[%emt 00:00:09]} 47. Rd6 {[%clk 00:06:12]} {[%emt 00:00:53]} Ra3 {[%clk
00:23:07]} {[%emt 00:00:05]} 48. Rd5 {[%clk 00:06:18]} {[%emt 00:00:04]} Ke6
{[%clk 00:23:00]} {[%emt 00:00:15]} 49. Rg5 {[%clk 00:06:24]} {[%emt 00:00:06]}
Kf6 {[%clk 00:23:08]} {[%emt 00:00:03]} 50. Kg2 {[%clk 00:05:43]} {[%emt
00:00:50]} Rb3 {[%clk 00:23:16]} {[%emt 00:00:03]} 51. f5 {[%clk 00:02:37]}
{[%emt 00:03:16]} Rb5 {[%clk 00:22:49]} {[%emt 00:00:37]} 52. Rxg6+ {[%clk
00:02:35]} {[%emt 00:00:12]} Kf7 {[%clk 00:22:57]} {[%emt 00:00:02]} 53. Rg5
{[%clk 00:02:17]} {[%emt 00:00:29]} Kf6 {[%clk 00:22:36]} {[%emt 00:00:31]} 54.
Rxh5 {[%clk 00:02:20]} {[%emt 00:00:07]} Rxf5 {[%clk 00:22:42]} {[%emt
00:00:03]} 55. Rxf5+ {[%clk 00:02:23]} {[%emt 00:00:07]} Kxf5 {[%clk 00:22:51]}
{[%emt 00:00:02]} 56. Kf3 {[%clk 00:02:32]} Kf6 {[%clk 00:22:57]} {[%emt
00:00:04]} 57. Kf4 {[%clk 00:02:41]} Kg6 {[%clk 00:23:06]} {[%emt 00:00:01]} 58.
g4 {[%clk 00:02:50]} Kf6 {[%clk 00:23:15]} {[%emt 00:00:01]} 59. g5+ {[%clk
00:02:56]} {[%emt 00:00:04]} Kg6 {[%clk 00:23:24]} {[%emt 00:00:01]} 60. Kg4
{[%clk 00:03:05]} Kf7 {[%clk 00:23:26]} {[%emt 00:00:08]} 61. Kh5 {[%clk
00:03:14]} {[%emt 00:00:01]} Kg7 {[%clk 00:23:34]} {[%emt 00:00:01]} 62. g6
{[%clk 00:03:21]} {[%emt 00:00:04]} Kf8 {[%clk 00:23:28]} {[%emt 00:00:14]} 63.
Kh6 {[%clk 00:03:26]} {[%emt 00:00:06]} Kg8 {[%clk 00:23:37]} {[%emt 00:00:02]}
64. g7 {[%emt 00:00:10]} 1-0



[ePGN "0.1;DGT LiveChess/2.2.6"]